bitfinex/quotes_BTCUSD_20251007
["timestamp","ask_amount","ask_price","bid_price","bid_amount"]
[1759806900644,0.53078156,124510.0,124500.0,0.00053572]
[1759806900845,1.40696504,124510.0,124500.0,0.000684]
[1759806901100,1.18550504,124510.0,124500.0,0.000684]
[1759806901400,1.44417437,124510.0,124500.0,0.000684]
[1759806902360,1.94175088,124510.0,124500.0,0.000684]
[1759806902794,1.83010966,124510.0,124500.0,0.000684]
[1759806902997,2.15946307,124510.0,124500.0,0.001684]
[1759806903214,2.05946309,124510.0,124500.0,0.001684]
[1759806903416,2.15946309,124510.0,124500.0,0.001684]
[1759806903809,2.16146309,124510.0,124450.0,0.25215097]
[1759806904013,0.16068128,124470.0,124450.0,0.24465446]
[1759806904219,0.0051,124460.0,124450.0,0.25268981]
[1759806904416,0.01259774,124460.0,124450.0,0.25268981]
[1759806904806,0.17329193,124460.0,124450.0,0.25268981]
[1759806905005,0.17329193,124460.0,124450.0,0.47936981]
[1759806905233,0.17329193,124460.0,124450.0,0.31869285]
[1759806905434,0.17529193,124460.0,124450.0,0.32669285]
[1759806905636,0.17529193,124460.0,124450.0,0.48739996]
[1759806906108,0.25528873,124460.0,124450.0,0.3186575]
[1759806906331,0.17529193,124460.0,124450.0,0.32004655]
[1759806906769,0.17629193,124460.0,124450.0,0.32204655]
[1759806907221,0.83775308,124460.0,124450.0,0.01188655]
[1759806907460,1.06447308,124460.0,124450.0,0.01188655]
[1759806907915,1.56181537,124460.0,124450.0,0.00988655]
[1759806908122,1.06343113,124460.0,124450.0,0.00988655]
[1759806908331,1.06343113,124460.0,124450.0,0.00288655]
[1759806908332,1.36620532,124460.0,124450.0,0.00288655]
[1759806908551,1.59100532,124460.0,124450.0,0.00288655]
[1759806908762,1.59304532,124460.0,124450.0,0.01088655]
[1759806909184,1.60795526,124460.0,124450.0,0.01088655]
[1759806909387,1.38111526,124460.0,124450.0,0.01088655]
[1759806909592,1.60795526,124460.0,124450.0,0.01088655]
[1759806909766,1.94795526,124460.0,124450.0,0.01088655]
[1759806909932,1.97207333,124460.0,124450.0,0.01088655]
[1759806910158,1.76241073,124460.0,124450.0,0.01088655]
[1759806910360,1.98921073,124460.0,124450.0,0.01088655]
[1759806911326,1.98921073,124460.0,124450.0,0.003055]
[1759806912024,1.98925073,124460.0,124450.0,0.003055]
[1759806912783,2.49559302,124460.0,124450.0,0.003055]
[1759806912983,2.26875302,124460.0,124450.0,0.003055]
[1759806913201,2.60072343,124460.0,124450.0,0.003055]
[1759806913550,2.29036343,124460.0,124450.0,0.003055]
[1759806913706,2.60076343,124460.0,124450.0,0.003055]
[1759806913928,2.62962387,124460.0,124450.0,0.003055]
[1759806914326,2.62962387,124460.0,124410.0,0.28283793]
[1759806914327,0.16074586,124420.0,124410.0,0.2748]
[1759806914527,0.20545062,124420.0,124410.0,0.00011979]
[1759806915370,0.28857268,124420.0,124410.0,0.00011979]
[1759806915567,1.01383497,124420.0,124410.0,0.00011979]
[1759806915811,1.01783497,124420.0,124410.0,0.02211979]
[1759806916188,1.03272769,124420.0,124410.0,0.02211979]
[1759806916400,1.01783497,124420.0,124410.0,0.02211979]
[1759806916599,1.0317267,124420.0,124410.0,0.01711979]
[1759806916970,1.0327267,124420.0,124410.0,0.01911979]
[1759806917262,1.0327267,124420.0,124410.0,0.18189857]
[1759806917263,0.49709544,124420.0,124410.0,0.18189857]
[1759806917461,0.49409544,124420.0,124410.0,0.16785857]
[1759806917758,0.50239544,124420.0,124410.0,0.17187857]
[1759806917931,0.50243544,124420.0,124410.0,0.17187857]
[1759806918135,0.50243544,124420.0,124410.0,0.01111979]
[1759806918342,0.56386261,124420.0,124410.0,0.01111979]
[1759806918497,0.33694261,124420.0,124410.0,0.01111979]
[1759806918698,0.56382261,124420.0,124410.0,0.17187857]
[1759806919159,0.56382261,124420.0,124410.0,0.01111979]
[1759806919316,0.49922544,124420.0,124410.0,0.01111979]
[1759806919520,0.50239544,124420.0,124410.0,0.01111979]
[1759806919950,0.27021544,124420.0,124410.0,0.17469283]
[1759806920182,0.27021544,124420.0,124410.0,0.17765283]
[1759806920183,0.02634752,124420.0,124410.0,0.17765283]
[1759806920384,0.01145579,124420.0,124410.0,0.17765283]
[1759806920556,0.01145579,124420.0,124410.0,0.17267283]
[1759806920557,0.0093,124420.0,124410.0,0.17267283]
[1759806920766,0.07762673,124420.0,124410.0,0.17267283]
[1759806921643,0.0093,124420.0,124410.0,0.17267283]
[1759806923337,0.01675189,124420.0,124410.0,0.17267283]
[1759806924034,0.0093,124420.0,124410.0,0.17267283]
[1759806924234,0.17004586,124420.0,124410.0,0.17267283]
[1759806924803,0.75896947,124420.0,124410.0,0.01191405]
[1759806925003,1.35222649,124420.0,124410.0,0.01191405]
[1759806925362,0.89519871,124420.0,124410.0,0.01191405]
[1759806927158,0.91664779,124420.0,124410.0,0.01191405]
[1759806927359,0.89521004,124420.0,124410.0,0.01191405]
[1759806927559,0.89221004,124420.0,124410.0,0.00291405]
[1759806927906,0.89421004,124420.0,124410.0,0.00291405]
[1759806928234,0.91765912,124420.0,124410.0,0.00391405]
[1759806931748,0.91765912,124420.0,124410.0,0.00367233]
[1759806931942,1.14485912,124420.0,124410.0,0.00341603]
[1759806933530,1.17371956,124420.0,124410.0,0.00341603]
[1759806933782,0.36818047,124420.0,124410.0,0.00341603]
[1759806934016,0.33615003,124420.0,124410.0,0.00341603]
[1759806934189,1.06482232,124420.0,124410.0,0.00341603]
[1759806934347,1.09368276,124420.0,124410.0,0.00341603]
[1759806935380,1.07223368,124420.0,124410.0,0.00341603]
[1759806935588,1.15223048,124420.0,124410.0,0.00341603]
[1759806937052,1.65057277,124420.0,124410.0,0.00341603]
[1759806937252,1.69386343,124420.0,124410.0,0.00341603]
[1759806938112,1.72401533,124420.0,124410.0,0.00341603]
[1759806938311,1.69515489,124420.0,124410.0,0.00341603]
[1759806938860,2.03515489,124420.0,124410.0,0.00341603]
[1759806939642,1.99186423,124420.0,124410.0,0.00341603]
[1759806939839,2.04958511,124420.0,124410.0,0.00341603]
[1759806940197,0.65911399,124400.0,124390.0,0.0002]
[1759806940422,1.0993638,124400.0,124390.0,0.0002]
[1759806940626,1.1046338,124400.0,124390.0,0.00059726]
[1759806940804,1.12876126,124400.0,124390.0,0.00059726]
[1759806941196,1.62710355,124400.0,124390.0,0.00059726]
[1759806941561,1.67026358,124400.0,124390.0,0.00059726]
[1759806941760,1.67426358,124400.0,124390.0,0.01059726]
[1759806941958,1.17596129,124400.0,124390.0,0.01059726]
[1759806942330,1.17595776,124400.0,124390.0,0.01059726]
[1759806942906,1.16680102,124400.0,124390.0,0.01059726]
[1759806943130,1.16580102,124400.0,124390.0,0.00959726]
[1759806943536,1.66314331,124400.0,124390.0,0.00159726]
[1759806943972,1.16780102,124400.0,124390.0,0.00659726]
[1759806944172,1.19795292,124400.0,124390.0,0.00659726]
[1759806944346,1.22671544,124400.0,124390.0,0.00659726]
[1759806944547,1.20710236,124400.0,124390.0,0.00659726]
[1759806946156,1.70544465,124400.0,124390.0,0.00659726]
[1759806946360,1.70544465,124400.0,124390.0,0.00647236]
[1759806949690,1.67668213,124400.0,124390.0,0.00647236]
[1759806950138,2.01668213,124400.0,124390.0,0.00647236]
[1759806952272,2.04542479,124400.0,124390.0,0.00647236]
[1759806952669,2.04538479,124400.0,124390.0,0.00647236]
[1759806952891,1.04870021,124400.0,124390.0,0.00647236]
[1759806953086,2.00222476,124400.0,124390.0,0.00647236]
[1759806954689,1.77502476,124400.0,124390.0,0.00647236]
[1759806955213,2.00218476,124400.0,124390.0,0.00647236]
[1759806956114,2.03175028,124400.0,124390.0,0.00647236]
[1759806956436,2.02429102,124400.0,124390.0,0.00647236]
[1759806956767,1.79713102,124400.0,124390.0,0.00647236]
[1759806956980,2.02429102,124400.0,124390.0,0.00647236]
[1759806957129,1.99554836,124400.0,124390.0,0.00647236]
[1759806962164,1.97398284,124400.0,124390.0,0.00647236]
[1759806963594,1.96598284,124400.0,124390.0,0.00647236]
[1759806963773,1.95101358,124400.0,124390.0,0.00647236]
[1759806965344,1.72389358,124400.0,124390.0,0.00647236]
[1759806965565,1.95101358,124400.0,124390.0,0.00647236]
[1759806966303,0.7272949,124400.0,124390.0,0.00647236]
[1759806966515,0.48412301,124400.0,124390.0,0.01172236]
[1759806966736,0.9824653,124400.0,124390.0,0.01172236]
[1759806966945,0.48412301,124400.0,124390.0,0.01172236]
[1759806967145,0.48412301,124400.0,124390.0,0.00854236]
[1759806967546,0.48615301,124400.0,124390.0,0.00647236]
[1759806967762,0.56614981,124400.0,124390.0,0.00647236]
[1759806968640,0.56634981,124400.0,124390.0,0.00647236]
[1759806969079,0.09627131,124400.0,124390.0,0.17250698]
[1759806969287,0.48432301,124400.0,124390.0,0.17250698]
[1759806969485,0.48432301,124400.0,124390.0,0.00854236]
[1759806969855,0.48949301,124400.0,124390.0,0.00647236]
[1759806970454,0.56485138,124400.0,124390.0,0.00647236]
[1759806974597,0.56477138,124400.0,124390.0,0.00647236]
[1759806974796,0.55960138,124400.0,124390.0,0.17250698]
[1759806975015,0.09627131,124400.0,124390.0,0.17250698]
[1759806975216,0.48424301,124400.0,124390.0,0.17250698]
[1759806975426,0.48624301,124400.0,124390.0,0.00854236]
[1759806975649,0.48624301,124400.0,124390.0,0.00647236]
[1759806976017,0.47824301,124400.0,124390.0,0.00647236]
[1759806976407,0.58427883,124400.0,124390.0,0.00647236]
[1759806976572,1.42308993,124400.0,124390.0,0.00647236]
[1759806976931,1.43058918,124400.0,124390.0,0.00647236]
[1759806977137,1.44786736,124400.0,124390.0,0.00647236]
[1759806977382,1.47199951,124400.0,124390.0,0.00647236]
[1759806977789,1.48699575,124400.0,124390.0,0.00647236]
[1759806978909,0.98818465,124400.0,124390.0,0.00647236]
[1759806979139,1.48699575,124400.0,124390.0,0.00647236]
[1759806979341,1.47199951,124400.0,124390.0,0.00647236]
[1759806980986,1.46999951,124400.0,124390.0,0.00547236]
[1759806981183,1.46699951,124400.0,124390.0,0.00047236]
[1759806981404,1.47099951,124400.0,124390.0,0.00147236]
[1759806981611,1.47499951,124400.0,124390.0,0.00447236]
[1759806982045,1.47499483,124400.0,124390.0,0.00447236]
[1759806982886,0.97618373,124400.0,124390.0,0.00447236]
[1759806983109,0.74898373,124400.0,124390.0,0.00447236]
[1759806983312,1.55863483,124400.0,124390.0,0.00447236]
[1759806984179,1.53386208,124400.0,124390.0,0.00447236]
[1759806985211,1.22302208,124400.0,124390.0,0.00447236]
[1759806985445,1.53386208,124400.0,124390.0,0.00447236]
[1759806986068,1.53386208,124400.0,124390.0,0.00649236]
[1759806986069,0.64832706,124400.0,124390.0,0.00649236]
[1759806986242,0.64632706,124400.0,124390.0,0.00649236]
[1759806986387,0.30632706,124400.0,124390.0,0.00649236]
[1759806986600,0.50357516,124400.0,124390.0,0.00970236]
[1759806986798,0.48144301,124400.0,124390.0,0.00447236]
[1759806986998,0.36419171,124400.0,124390.0,0.00447236]
[1759806987303,0.58963171,124400.0,124390.0,0.00649236]
[1759806987511,0.59163171,124400.0,124390.0,0.00649236]
[1759806987727,0.59163171,124400.0,124390.0,0.00447236]
[1759806989045,0.36419171,124400.0,124390.0,0.00447236]
[1759806989256,0.59484171,124400.0,124390.0,0.00447236]
[1759806990423,1.43365281,124400.0,124390.0,0.00447236]
[1759806990823,1.45778551,124400.0,124390.0,0.00447236]
[1759806992248,1.48253799,124400.0,124390.0,0.00447236]
[1759806992671,1.48253799,124400.0,124360.0,0.0052]
[1759806992672,0.19096238,124370.0,124360.0,0.0052]
[1759806992983,1.38355264,124370.0,124360.0,0.0052]
[1759806993188,1.38880264,124370.0,124360.0,0.0052]
[1759806993351,1.38600264,124370.0,124360.0,0.0052]
[1759806993924,1.38700264,124370.0,124360.0,0.0072]
[1759806994537,1.39100264,124370.0,124360.0,0.0072]
[1759806994834,1.39900264,124370.0,124360.0,0.0072]
[1759806995056,1.46033163,124370.0,124360.0,0.0072]
[1759806995485,1.45933163,124370.0,124360.0,0.0052]
[1759806995738,1.56033163,124370.0,124360.0,0.0062]
[1759806996108,1.61751817,124370.0,124360.0,1e-08]
[1759806996644,0.19097531,124360.0,124350.0,0.0002]
[1759806996845,0.79915854,124360.0,124350.0,0.0002]
[1759806997065,0.80429854,124360.0,124350.0,0.0002]
[1759806997852,0.80444774,124360.0,124350.0,0.0002]
[1759806998157,0.81044774,124360.0,124350.0,0.0002]
[1759806998728,0.81444774,124360.0,124350.0,0.0012]
[1759806999062,0.81444774,124360.0,124350.0,0.00199484]
[1759807000222,0.25623467,124360.0,124350.0,0.00410484]
[1759807000422,0.82173467,124360.0,124350.0,0.00706484]
[1759807000633,0.85188657,124360.0,124350.0,0.00706484]
[1759807001037,0.8760255,124360.0,124350.0,0.00706484]
[1759807001233,0.9560223,124360.0,124350.0,0.00706484]
[1759807001435,0.9560223,124360.0,124350.0,0.00410484]
[1759807001652,0.95586952,124360.0,124350.0,0.00410484]
[1759807001862,0.94986952,124360.0,124350.0,0.00410484]
[1759807002078,0.94986952,124360.0,124350.0,0.00310484]
[1759807002342,0.95186952,124360.0,124350.0,0.00410484]
[1759807002516,0.95700952,124360.0,124350.0,0.00199484]
[1759807003048,0.72936952,124360.0,124350.0,0.00199484]
[1759807003206,0.95700952,124360.0,124350.0,0.00199484]
[1759807004140,0.72936952,124360.0,124350.0,0.00199484]
[1759807004351,0.95700952,124360.0,124350.0,0.00199484]
[1759807004894,0.72936952,124360.0,124350.0,0.00199484]
[1759807005112,0.95696952,124360.0,124350.0,0.00199484]
[1759807005727,1.45578062,124360.0,124350.0,0.00199484]
[1759807005933,0.95696952,124360.0,124350.0,0.00199484]
[1759807006948,1.47072466,124360.0,124350.0,0.00199484]
[1759807007149,0.97191356,124360.0,124350.0,0.00199484]
[1759807009083,1.47072466,124360.0,124350.0,0.00199484]
[1759807009813,0.97191356,124360.0,124350.0,0.00199484]
[1759807009965,1.47072466,124360.0,124350.0,0.00199484]
[1759807014373,1.48794083,124360.0,124350.0,0.00199484]
[1759807015902,1.26034083,124360.0,124350.0,0.00199484]
[1759807016115,1.48790083,124360.0,124350.0,0.00199484]
[1759807016690,1.49537429,124360.0,124350.0,0.00199484]
[1759807017116,1.48790083,124360.0,124350.0,0.00199484]
[1759807017321,1.49537645,124360.0,124350.0,0.00199484]
[1759807019354,1.51694197,124360.0,124350.0,0.00199484]
[1759807021518,1.54568463,124360.0,124350.0,0.00199484]
[1759807022800,1.62924463,124360.0,124350.0,0.00199484]
[1759807023355,1.60767911,124360.0,124350.0,0.00199484]
[1759807023587,1.29655911,124360.0,124350.0,0.00199484]
[1759807023770,1.60767911,124360.0,124350.0,0.00199484]
[1759807024144,1.70767911,124360.0,124350.0,0.00199484]
[1759807024324,2.24965024,124360.0,124350.0,0.00199484]
[1759807024738,1.75083914,124360.0,124350.0,0.00199484]
[1759807024942,2.22094832,124360.0,124350.0,0.00199484]
[1759807025154,2.21894832,124360.0,124350.0,0.00099484]
[1759807025998,1.71613722,124360.0,124350.0,0.00099484]
[1759807026352,2.22294832,124360.0,124350.0,0.00099484]
[1759807026557,2.22296336,124360.0,124350.0,0.00099484]
[1759807026833,2.22696336,124360.0,124350.0,0.00199484]
[1759807027206,2.72769866,124360.0,124350.0,0.00199484]
[1759807028154,2.72774002,124360.0,124350.0,0.00199484]
[1759807028357,2.75650033,124360.0,124350.0,0.00199484]
[1759807029509,2.17340783,124360.0,124350.0,0.00199484]
[1759807029793,2.15700783,124360.0,124350.0,0.00199484]
[1759807030008,2.25700783,124360.0,124350.0,0.00199484]
[1759807030368,1.84592783,124360.0,124350.0,0.00199484]
[1759807030600,2.25700783,124360.0,124350.0,0.00199484]
[1759807031379,2.2138478,124360.0,124350.0,0.00199484]
[1759807033072,0.49189245,124360.0,124350.0,0.00717484]
[1759807033273,1.16845819,124360.0,124350.0,0.00717484]
[1759807033496,1.16845819,124360.0,124350.0,0.00406484]
[1759807033702,1.19741051,124360.0,124350.0,0.00406484]
[1759807033850,1.50484731,124360.0,124350.0,0.00406484]
[1759807034064,0.92742801,124360.0,124350.0,0.00406484]
[1759807034235,0.69795801,124360.0,124350.0,0.00199484]
[1759807034433,1.42485051,124360.0,124350.0,0.00717484]
[1759807034644,1.42485051,124360.0,124350.0,0.00406484]
[1759807034850,1.50988731,124360.0,124350.0,0.00199484]
[1759807035073,2.00933981,124360.0,124350.0,0.00199484]
[1759807041289,2.00934444,124360.0,124350.0,0.00199484]
[1759807043452,2.03091089,124360.0,124350.0,0.00199484]
[1759807043632,2.02291089,124360.0,124350.0,0.00199484]
[1759807045536,0.17321268,124360.0,124350.0,0.00395484]
[1759807045877,0.17321268,124360.0,124350.0,0.00719484]
[1759807045878,0.48373467,124360.0,124350.0,0.00719484]
[1759807046519,0.47573467,124360.0,124350.0,0.00719484]
[1759807046685,0.47173467,124360.0,124350.0,0.00619484]
[1759807046891,0.24609467,124360.0,124350.0,0.00719484]
[1759807047301,0.47373467,124360.0,124350.0,0.00719484]
[1759807047507,0.47673467,124360.0,124350.0,0.00719484]
[1759807048218,0.55673147,124360.0,124350.0,0.00719484]
[1759807049183,0.47673467,124360.0,124350.0,0.00719484]
[1759807050846,0.47665467,124360.0,124350.0,0.00719484]
[1759807051389,0.24909467,124360.0,124350.0,0.00719484]
[1759807051659,0.08827126,124360.0,124350.0,0.16803118]
[1759807055129,0.24909467,124360.0,124350.0,0.16803118]
[1759807056804,0.24909467,124360.0,124350.0,0.00395484]
[1759807057004,0.29287519,124360.0,124350.0,0.00395484]
[1759807057798,0.25108467,124360.0,124350.0,0.00395484]
[1759807057993,0.16083634,124350.0,124330.0,0.22347478]
[1759807058315,0.16083634,124350.0,124340.0,0.16084427]
[1759807058746,0.2439584,124350.0,124330.0,0.13987478]
[1759807058951,0.2459484,124350.0,124330.0,0.14791789]
[1759807059257,0.2899535,124350.0,124330.0,0.37947789]
[1759807059421,0.2879535,124350.0,124330.0,0.37747789]
[1759807059627,0.2879535,124350.0,124330.0,0.14991789]
[1759807059811,0.2919535,124350.0,124340.0,0.003]
[1759807060015,0.2879535,124350.0,124330.0,0.37747789]
[1759807060461,0.2909535,124350.0,124330.0,0.38147789]
[1759807060814,0.2930735,124350.0,124330.0,0.15191789]
[1759807061012,0.2930735,124350.0,124330.0,0.37947789]
[1759807061249,0.2520684,124350.0,124330.0,0.37947789]
[1759807061786,0.2490684,124350.0,124330.0,0.14791789]
[1759807061932,0.2490684,124350.0,124330.0,0.37547789]
[1759807062365,0.2530684,124350.0,124340.0,0.003]
[1759807062584,0.7525209,124350.0,124340.0,0.003]
[1759807062837,1.1695177,124350.0,124340.0,0.001]
[1759807063239,1.1725177,124350.0,124340.0,0.001]
[1759807063629,1.1695177,124350.0,124340.0,0.001]
[1759807063836,1.1735177,124350.0,124340.0,0.00419876]
[1759807064042,1.4312296,124350.0,124340.0,0.00419876]
[1759807065325,0.9318171,124350.0,124340.0,0.00419876]
[1759807065648,0.7042171,124350.0,124340.0,0.00419876]
[1759807066087,0.9318171,124350.0,124340.0,0.00419876]
[1759807066277,1.4312696,124350.0,124340.0,0.00419876]
[1759807067473,1.9307221,124350.0,124340.0,0.00419876]
[1759807068660,1.9267221,124350.0,124340.0,0.00119876]
[1759807068903,1.9347221,124350.0,124340.0,0.00119876]
[1759807069306,1.9387221,124350.0,124340.0,0.00219876]
[1759807070515,1.9460821,124350.0,124340.0,0.00219876]
[1759807071093,1.9540821,124350.0,124340.0,0.00219876]
[1759807073089,1.7264821,124350.0,124340.0,0.00219876]
[1759807073295,2.0376821,124350.0,124340.0,0.00219876]
[1759807075969,1.7264821,124350.0,124340.0,0.00219876]
[1759807076149,2.0376821,124350.0,124340.0,0.00219876]
[1759807076719,0.7275771,124350.0,124340.0,0.00219876]
[1759807076924,2.0376421,124350.0,124340.0,0.00219876]
[1759807077558,1.2270296,124350.0,124340.0,0.00219876]
[1759807077743,1.5381896,124350.0,124340.0,0.00219876]
[1759807078158,1.7264821,124350.0,124340.0,0.00219876]
[1759807078362,1.9540421,124350.0,124340.0,0.00219876]
[1759807078519,1.4545896,124350.0,124340.0,0.00219876]
[1759807079868,1.9540421,124350.0,124340.0,0.00219876]
[1759807080576,1.9460421,124350.0,124340.0,0.00219876]
[1759807081097,1.9540421,124350.0,124340.0,0.00219876]
[1759807082280,1.96897561,124350.0,124340.0,0.00219876]
[1759807085200,0.50086222,124330.0,124320.0,0.0052]
[1759807085399,1.95547645,124330.0,124320.0,0.0052]
[1759807085514,1.96061645,124330.0,124320.0,0.0052]
[1759807085710,1.98476309,124330.0,124320.0,0.0052]
[1759807086346,0.68964168,124330.0,124320.0,0.0052]
[1759807086544,1.06219612,124330.0,124320.0,0.0062]
[1759807086874,2.06110112,124330.0,124320.0,0.0062]
[1759807087100,1.56177127,124330.0,124320.0,0.0062]
[1759807087747,1.56577127,124330.0,124320.0,0.0062]
[1759807088220,1.25461127,124330.0,124320.0,0.0062]
[1759807088419,1.56577127,124330.0,124320.0,0.0062]
[1759807089162,1.58299363,124330.0,124320.0,0.0062]
[1759807089902,1.27183363,124330.0,124320.0,0.0062]
[1759807090051,1.58299363,124330.0,124320.0,0.0062]
[1759807090233,1.59851794,124330.0,124320.0,0.0062]
[1759807090762,1.59851794,124330.0,124320.0,0.00659759]
[1759807091330,1.60599767,124330.0,124320.0,0.00659759]
[1759807097353,1.62751395,124330.0,124320.0,0.00659759]
[1759807099365,2.1270891,124330.0,124320.0,0.00659759]
[1759807099561,1.62751395,124330.0,124320.0,0.00659759]
[1759807100295,1.62755338,124330.0,124320.0,0.00659759]
[1759807101724,1.54395338,124330.0,124320.0,0.00659759]
[1759807101902,1.62759338,124330.0,124320.0,0.00659759]
[1759807103011,1.05237823,124330.0,124320.0,0.00659759]
[1759807103215,1.63559338,124330.0,124320.0,0.00659759]
[1759807103834,1.62759338,124330.0,124320.0,0.00659759]
[1759807104864,1.62755338,124330.0,124320.0,0.00659759]
[1759807105632,1.31639338,124330.0,124320.0,0.00659759]
[1759807105872,1.63555338,124330.0,124320.0,0.00659759]
[1759807108592,1.6355571,124330.0,124320.0,0.00659759]
[1759807109189,1.63556454,124330.0,124320.0,0.00659759]
[1759807110427,1.62756454,124330.0,124320.0,0.00659759]
[1759807110636,1.31640454,124330.0,124320.0,0.00659759]
[1759807110814,1.62756454,124330.0,124320.0,0.00659759]
[1759807113101,1.31640454,124330.0,124320.0,0.00659759]
[1759807113424,1.62752454,124330.0,124320.0,0.00659759]
[1759807115264,0.75826222,124330.0,124320.0,0.00659759]
[1759807115465,0.99433784,124330.0,124320.0,0.00659759]
[1759807115702,1.49391299,124330.0,124320.0,0.00659759]
[1759807116115,1.52042927,124330.0,124320.0,0.00659759]
[1759807116315,1.49891299,124330.0,124320.0,0.00659759]
[1759807116501,1.57890979,124330.0,124320.0,0.00659759]
[1759807122063,0.85189464,124330.0,124320.0,0.00659759]
[1759807122275,1.65165979,124330.0,124320.0,0.00659759]
[1759807122475,1.65466979,124330.0,124320.0,0.00659759]
[1759807123046,1.57601979,124330.0,124320.0,0.00659759]
[1759807123466,1.57902979,124330.0,124320.0,0.00659759]
[1759807124206,0.76689784,124330.0,124320.0,0.00659759]
[1759807124404,0.75940654,124330.0,124320.0,0.00659759]
[1759807124601,0.98700654,124330.0,124320.0,0.00659759]
[1759807124961,0.98912654,124330.0,124320.0,0.00659759]
[1759807125380,0.34152536,124330.0,124320.0,0.00659759]
[1759807125596,0.90912536,124330.0,124320.0,0.00652631]
[1759807125828,0.91121536,124330.0,124320.0,0.00652631]
[1759807126029,0.88706872,124330.0,124320.0,0.00652631]
[1759807126235,0.90086089,124330.0,124320.0,0.00652631]
[1759807126816,0.90402089,124330.0,124320.0,0.00652631]
[1759807127024,0.89022872,124330.0,124320.0,0.00652631]
[1759807128884,0.97022552,124330.0,124320.0,0.00652631]
[1759807129074,0.96706552,124330.0,124320.0,0.00652631]
[1759807132096,0.96497552,124330.0,124320.0,0.00652631]
[1759807132469,0.88497872,124330.0,124320.0,0.00652631]
[1759807132675,0.88706872,124330.0,124320.0,0.00652631]
[1759807132972,0.89022872,124330.0,124320.0,0.00652631]
[1759807133382,0.88222872,124330.0,124320.0,0.00652631]
[1759807133747,0.91238062,124330.0,124320.0,0.00652631]
[1759807133973,1.49195257,124330.0,124320.0,0.00652631]
[1759807134196,1.51609931,124330.0,124320.0,0.00652631]
[1759807135605,1.56427931,124330.0,124320.0,0.00652631]
[1759807135804,1.51609931,124330.0,124320.0,0.00652631]
[1759807136445,1.01652416,124330.0,124320.0,0.00652631]
[1759807136672,1.51609931,124330.0,124320.0,0.00652631]
[1759807139602,1.01652416,124330.0,124320.0,0.00652631]
[1759807139741,1.51609931,124330.0,124320.0,0.00652631]
[1759807140164,0.78892416,124330.0,124320.0,0.00652631]
[1759807140367,0.70367736,124330.0,124320.0,0.00652631]
[1759807140566,0.90100546,124330.0,124320.0,0.00652631]
[1759807140775,0.93115736,124330.0,124320.0,0.00652631]
[1759807141602,0.70576736,124330.0,124320.0,0.00652631]
[1759807141806,0.70367736,124330.0,124320.0,0.00652631]
[1759807142012,0.93119736,124330.0,124320.0,0.00652631]
[1759807142419,1.01119416,124330.0,124320.0,0.00652631]
[1759807142821,0.93119736,124330.0,124320.0,0.00652631]
[1759807143420,0.90104546,124330.0,124320.0,0.00652631]
[1759807143905,0.90313546,124330.0,124320.0,0.00652631]
[1759807144312,0.90629546,124330.0,124320.0,0.00652631]
[1759807145569,0.67877546,124330.0,124320.0,0.00652631]
[1759807145890,0.90625546,124330.0,124320.0,0.00652631]
[1759807146311,0.98625226,124330.0,124320.0,0.00652631]
[1759807148602,0.75877226,124330.0,124320.0,0.00652631]
[1759807148791,0.90096546,124330.0,124320.0,0.00652631]
[1759807148999,0.67352546,124330.0,124320.0,0.00652631]
[1759807149152,0.33352546,124330.0,124320.0,0.00652631]
[1759807149367,0.56096546,124330.0,124320.0,0.00652631]
[1759807149755,0.33352546,124330.0,124320.0,0.16740147]
[1759807149948,0.1132688,124330.0,124320.0,0.16740147]
[1759807150156,0.006,124330.0,124320.0,0.18159903]
[1759807150605,0.006,124330.0,124320.0,0.16740147]
[1759807151207,0.004,124330.0,124320.0,0.16640147]
[1759807151363,0.16085006,124340.0,124320.0,0.16640147]
[1759807151568,0.24397212,124340.0,124320.0,0.16600388]
[1759807152589,0.24397212,124340.0,124320.0,0.2346053]
[1759807152590,0.004,124330.0,124320.0,0.2346053]
[1759807152818,0.004,124330.0,124320.0,0.4620853]
[1759807153020,0.24397212,124340.0,124320.0,0.4580853]
[1759807153240,0.24697212,124340.0,124320.0,0.4590853]
[1759807153487,0.24497212,124340.0,124320.0,0.39648388]
[1759807153853,0.003,124330.0,124320.0,0.39748388]
[1759807154079,0.24497212,124340.0,124320.0,0.39648388]
[1759807154417,0.16086222,124330.0,124320.0,0.39748388]
[1759807155475,0.16086222,124330.0,124320.0,0.39448388]
[1759807155722,0.16086222,124330.0,124320.0,0.39348388]
[1759807155929,0.004,124330.0,124320.0,0.39848388]
[1759807156983,0.004,124330.0,124320.0,0.46501217]
[1759807157213,0.004,124330.0,124320.0,0.39848388]
[1759807157416,0.004,124330.0,124320.0,0.17140146]
[1759807157617,0.004,124330.0,124320.0,0.39880146]
[1759807158831,0.004,124330.0,124320.0,0.17140146]
[1759807159043,0.004,124330.0,124320.0,0.39880146]
[1759807161713,0.16486222,124330.0,124320.0,0.17140146]
[1759807161915,0.16486222,124330.0,124320.0,0.39876146]
[1759807163709,0.16486222,124330.0,124320.0,0.17140146]
[1759807163915,0.16486222,124330.0,124320.0,0.39876146]
[1759807164345,0.16486222,124330.0,124320.0,0.17140146]
[1759807164525,0.16486222,124330.0,124320.0,0.39872146]
[1759807168546,0.004,124330.0,124320.0,0.39872146]
[1759807176166,0.004,124330.0,124320.0,0.46527351]
[1759807176377,0.004,124330.0,124320.0,0.39872146]
[1759807178187,0.004,124330.0,124320.0,0.73872146]
[1759807178376,0.004,124330.0,124320.0,0.76285748]
[1759807181149,0.004,124330.0,124320.0,0.84597954]
[1759807182259,0.004,124330.0,124320.0,0.61865954]
[1759807182499,0.004,124330.0,124320.0,1.00949634]
[1759807186630,0.004,124330.0,124320.0,0.69865634]
[1759807186846,0.004,124330.0,124320.0,1.00945634]
[1759807189861,0.003,124330.0,124320.0,1.00645634]
[1759807190154,0.004,124330.0,124320.0,1.01145634]
[1759807190489,0.001,124330.0,124320.0,1.00945634]
[1759807190908,0.004,124330.0,124320.0,1.01545634]
[1759807196564,0.004,124330.0,124320.0,0.70465634]
[1759807196800,0.004,124330.0,124320.0,1.01541634]
[1759807198875,0.004,124330.0,124320.0,2.47107734]
[1759807199116,0.004,124330.0,124320.0,2.41050334]
[1759807199318,0.004,124330.0,124320.0,2.26543134]
[1759807200567,0.004,124330.0,124320.0,2.29043134]
[1759807203277,0.00053652,124350.0,124340.0,0.50084928]
[1759807203422,0.00053652,124350.0,124340.0,0.87730138]
[1759807204003,0.00053652,124350.0,124340.0,0.90143114]
[1759807205040,0.00353652,124350.0,124340.0,0.90843114]
[1759807205970,0.00453652,124350.0,124340.0,0.91243114]
[1759807206378,0.00453652,124350.0,124340.0,1.24679114]
[1759807206582,0.00353652,124350.0,124340.0,1.32635114]
[1759807206784,0.00453652,124350.0,124340.0,1.33135114]
[1759807208705,0.00453652,124350.0,124340.0,2.39054214]
[1759807208913,1e-08,124350.0,124340.0,2.39054214]
[1759807209138,1.47219465,124350.0,124340.0,2.39054214]
[1759807209343,1.3315319,124350.0,124340.0,2.39054214]